lending/lending_fUSD_20260204
["ID","MTS","AMOUNT","RATE_DAILY","PERIOD"]
[404467853,1770165046036,-930.63,0.00017999,2]
[404467854,1770165046045,-508.48,0.00017999,2]
[404467855,1770165046055,-508.48,0.00017999,2]
[404467856,1770165046063,-930.63,0.00017999,2]
[404467857,1770165046072,-930.63,0.00017999,2]
[404467858,1770165046082,-508.48,0.00017999,2]
[404467859,1770165046091,-508.5960744,0.00017999,2]
[404467860,1770165046101,-930.63,0.00017999,2]
[404467861,1770165046110,-930.63,0.00017999,2]
[404467862,1770165046120,-930.63,0.00017999,2]
[404467863,1770165046131,-930.63,0.00017999,2]
[404467864,1770165046140,-930.63,0.00017999,2]
[404467865,1770165046151,-930.63,0.00017999,2]
[404467866,1770165046160,-930.63,0.00017999,2]
[404467867,1770165046170,-930.63,0.00017999,2]
[404467868,1770165046179,-930.63,0.00017999,2]
[404467869,1770165046188,-930.63,0.00017999,2]
[404467870,1770165046198,-930.63,0.00017999,2]
[404467871,1770165046207,-930.63,0.00017999,2]
[404467872,1770165046217,-930.63,0.00017999,2]
[404467874,1770165046227,-930.63,0.00017999,2]
[404467877,1770165046237,-930.63,0.00017999,2]
[404467878,1770165046247,-930.63,0.00017999,2]
[404467880,1770165046442,-930.63,0.00017999,2]
[404467881,1770165046454,-930.63,0.00017999,2]
[404467882,1770165046463,-930.63,0.00017999,2]
[404467883,1770165046473,-930.81541256,0.00017999,2]
[404467884,1770165046482,-595.81274949,0.00017999,2]
[404467885,1770165046492,-254761.5728461,0.00017999,2]
[404467886,1770165046501,-500.0,0.00017999,2]
[404467887,1770165046515,-500.0,0.00017999,2]
[404467888,1770165046524,-500.0,0.00017999,2]
[404467889,1770165046533,-500.0,0.00017999,2]
[404467890,1770165046543,-500.0,0.00017999,2]
[404467891,1770165046553,-505.36940951,0.00017999,2]
[404467892,1770165046562,-500.0,0.00017999,2]
[404467893,1770165046573,-500.0,0.00017999,2]
[404467894,1770165046582,-500.0,0.00017999,2]
[404467895,1770165046591,-500.0,0.00017999,2]
[404467896,1770165046601,-500.0,0.00017999,2]
[404467897,1770165046610,-500.0,0.00017999,2]
[404467898,1770165046621,-411.72693123,0.00017999,2]
[404467899,1770165046631,-527.84,0.00017999,2]
[404467900,1770165046641,-527.84,0.00017999,2]
[404467901,1770165046650,-527.84,0.00017999,2]
[404467902,1770165046660,-527.84,0.00017999,2]
[404467903,1770165046671,-527.84,0.00017999,2]
[404467904,1770165046680,-527.84,0.00017999,2]
[404467905,1770165046690,-527.84,0.00017999,2]
[404467906,1770165046700,-527.84,0.00017999,2]
[404467907,1770165046710,-527.84,0.00017999,2]
[404467908,1770165046720,-527.84,0.00017999,2]
[404467909,1770165046730,-527.84,0.00017999,2]
[404467910,1770165046740,-527.84,0.00017999,2]
[404467911,1770165046751,-527.84,0.00017999,2]
[404467912,1770165046760,-527.84,0.00017999,2]
[404467913,1770165046771,-527.84,0.00017999,2]
[404467914,1770165046781,-527.84,0.00017999,2]
[404467915,1770165046790,-527.84,0.00017999,2]
[404467916,1770165046801,-527.84,0.00017999,2]
[404467917,1770165046811,-527.84,0.00017999,2]
[404467918,1770165046823,-527.84,0.00017999,2]
[404467919,1770165046832,-527.84,0.00017999,2]
[404467920,1770165046842,-527.84,0.00017999,2]
[404467921,1770165046855,-527.99942452,0.00017999,2]
[404467922,1770165046865,-1160.044118,0.00017999,2]
[404467923,1770165046876,-1160.044118,0.00017999,2]
[404467924,1770165046887,-1160.044118,0.00017999,2]
[404467925,1770165046898,-500.0,0.00017999,2]
[404467926,1770165046909,-495.99852835,0.00017999,2]
[404467927,1770165046918,-1160.044118,0.00017999,2]
[404467928,1770165046928,-151.0,0.00017999,2]
[404467929,1770165046938,-151.0,0.00017999,2]
[404467930,1770165046948,-151.0,0.00017999,2]
[404467931,1770165046957,-2986512.42718045,0.00018,2]
[404467932,1770165048122,-2020.869312,0.00018,2]
[404467933,1770165048134,-300.57795713,0.00018,2]
[404467934,1770165048182,-5566.4710929,0.00018,2]
[404467935,1770165048197,-48403.69094595,0.00018,2]
[404468077,1770166231851,-500.0,0.00011017,2]
[404468078,1770166231861,-327.74562474,0.00011017,2]
[404468079,1770166231871,-508.66720141,0.00011017,2]
[404468080,1770166231880,-300.0,0.00011017,2]
[404468081,1770166231890,-195.0,0.00011017,2]
[404468082,1770166231899,-195.0,0.00011017,2]
[404468083,1770166231909,-195.0,0.00011028,2]
[404468084,1770166231918,-300.0,0.00011076,2]
[404468085,1770166231928,-164.0,0.000113,2]
[404468086,1770166231938,-164.0,0.000113,2]
[404468087,1770166231948,-300.0,0.00012117,2]
[404468088,1770166231960,-1200.0,0.00012117,2]
[404468089,1770166231969,-4774.31879055,0.00012118,2]
[404468090,1770166231984,-8579.21532885,0.00012118,2]
[404468091,1770166232002,-9999.2694054,0.00012118,2]
[404468092,1770166232012,-195.0,0.00012118,2]
[404468093,1770166232021,-195.0,0.00012118,2]
[404468094,1770166232031,-208.89448567,0.00012118,2]
[404468099,1770166237802,-41.10551433,0.00012118,2]
[404468100,1770166237811,-271.84748567,0.00012118,2]
[404468101,1770166237854,-28.15251433,0.00012118,2]
[404468102,1770166237864,-166.66,0.00012683,2]
[404468103,1770166237873,-166.66,0.0001295,2]
[404468104,1770166237883,-166.66,0.00013217,2]
[404468105,1770166237892,-1680.0,0.00013329,2]
[404468106,1770166237901,-166.66,0.00013484,2]
[404468107,1770166237911,-1421.97186879,0.00013584,2]
[404468108,1770166237923,-391.47399169,0.00013584,2]
[404468109,1770166237931,-176.21939488,0.00013584,2]
[404468110,1770166237940,-193.57661343,0.00013589,2]
[404468111,1770166237963,-306.42338657,0.00013589,2]
[404468112,1770166237974,-150.0,0.00013597,2]
[404468113,1770166237983,-23352.8035248,0.00013684,2]
[404468114,1770166237994,-1088.87,0.00013698,2]
[404468115,1770166238004,-1088.87,0.00013698,2]
[404468116,1770166238014,-1088.87,0.00013698,2]
[404468117,1770166238023,-1088.87,0.00013698,2]
[404468118,1770166238033,-500.0,0.00013698,2]
[404468119,1770166238042,-500.0,0.00013698,2]
[404468120,1770166238051,-500.0,0.00013698,2]
[404468121,1770166238061,-500.0,0.00013698,2]
[404468122,1770166238071,-500.0,0.00013698,2]
[404468123,1770166238080,-500.0,0.00013698,2]
[404468124,1770166238305,-500.0,0.00013698,2]
[404468125,1770166238315,-500.0,0.00013698,2]
[404468126,1770166238324,-500.0,0.00013698,2]
[404468127,1770166238334,-154.17727181,0.00013698,2]
[404468128,1770166238343,-508.48,0.00013698,2]
[404468129,1770166238352,-508.48,0.00013698,2]
[404468130,1770166238362,-508.48,0.00013698,2]
[404468131,1770166238371,-508.48,0.00013698,2]
[404468132,1770166238380,-631.44,0.00013698,2]
[404468133,1770166238389,-500.0,0.00013698,2]
[404468134,1770166238398,-500.0,0.00013698,2]
[404468135,1770166238409,-500.0,0.00013698,2]
[404468136,1770166238418,-500.0,0.00013698,2]
[404468137,1770166238427,-500.0,0.00013698,2]
[404468138,1770166238437,-500.0,0.00013698,2]
[404468139,1770166238447,-500.0,0.00013698,2]
[404468140,1770166238456,-500.0,0.00013698,2]
[404468141,1770166238465,-527.84,0.00013698,2]
[404468142,1770166238474,-527.84,0.00013698,2]
[404468143,1770166238483,-527.84,0.00013698,2]
[404468144,1770166238493,-527.84,0.00013698,2]
[404468145,1770166238502,-500.0,0.00013698,2]
[404468146,1770166238511,-500.0,0.00013698,2]
[404468147,1770166238520,-500.0,0.00013698,2]
[404468148,1770166238530,-500.0,0.00013698,2]
[404468149,1770166238539,-500.0,0.00013698,2]
[404468150,1770166238548,-500.0,0.00013698,2]
[404468151,1770166238558,-500.0,0.00013698,2]
[404468152,1770166238567,-500.0,0.00013698,2]
[404468153,1770166238576,-164.0,0.000137,2]
[404468154,1770166238586,-164.0,0.000137,2]
[404468155,1770166238595,-166.66,0.00013751,2]
[404468156,1770166238605,-631.44,0.00013972,2]
[404468157,1770166238615,-166.66,0.00014018,2]
[404468158,1770166238624,-1813.44586048,0.00014064,2]
[404468159,1770166238634,-151.0,0.00014155,2]
[404468160,1770166238643,-151.0,0.00014155,2]
[404468161,1770166238653,-151.0,0.00014155,2]
[404468162,1770166238663,-151.0,0.00014155,2]
[404468163,1770166238673,-151.0,0.00014155,2]
[404468164,1770166238682,-151.0,0.00014155,2]
[404468165,1770166238691,-151.0,0.00014155,2]
[404468166,1770166238701,-151.0,0.00014155,2]
[404468167,1770166238710,-151.0,0.00014155,2]
[404468168,1770166238720,-151.0,0.00014155,2]
[404468169,1770166238730,-151.0,0.00014155,2]
[404468170,1770166238739,-1088.87,0.00014155,2]
[404468171,1770166238749,-500.0,0.00014155,2]
[404468172,1770166238759,-500.0,0.00014155,2]
[404468173,1770166238768,-508.48,0.00014155,2]
[404468174,1770166238777,-500.0,0.00014155,2]
[404468175,1770166238787,-500.0,0.00014155,2]
[404468176,1770166238796,-527.84,0.00014155,2]
[404468177,1770166238805,-500.0,0.00014155,2]
[404468178,1770166238815,-500.0,0.00014155,2]
[404468179,1770166238824,-557.52989048,0.00014162,2]
[404468180,1770166238833,-971.1,0.00014162,2]
[404468181,1770166238842,-500.0,0.00014162,2]
[404468182,1770166238851,-500.0,0.00014162,2]
[404468183,1770166238860,-500.0,0.00014162,2]
[404468184,1770166238870,-631.44,0.00014246,2]
[404468185,1770166238880,-11292.95,0.00014263,2]
[404468186,1770166238890,-201.14,0.00014333,2]
[404468187,1770166238899,-631.44,0.0001452,2]
[404468188,1770166238910,-1813.44586048,0.00014543,2]
[404468189,1770166238919,-250.0,0.00014557,2]
[404468190,1770166238929,-166.68,0.00014694,2]
[404468191,1770166238938,-160.0,0.00014756,2]
[404468192,1770166238948,-631.44,0.00014794,2]
[404468193,1770166238957,-500.0,0.00014877,2]
[404468194,1770166238967,-164.0,0.000149,2]
[404468195,1770166238976,-164.0,0.000149,2]
[404468196,1770166238985,-216.93470814,0.000149,2]
[404468197,1770166238995,-500.0,0.00014999,2]
[404468198,1770166239005,-1813.44586048,0.00015023,2]
[404468199,1770166239015,-631.44,0.00015068,2]
[404468200,1770166239025,-23352.8035248,0.0001525,2]
[404468201,1770166239034,-631.44,0.00015342,2]
[404468202,1770166239044,-1813.44586048,0.00015502,2]
[404468203,1770166239053,-1798.15,0.00015591,2]
[404468204,1770166239063,-631.44,0.00015616,2]
[404468205,1770166239072,-164.0,0.0001569,2]
[404468206,1770166239080,-164.0,0.0001569,2]
[404468207,1770166239090,-631.44,0.0001589,2]
[404468208,1770166239099,-1000.0,0.00015918,2]
[404468209,1770166239108,-1813.44586048,0.00015982,2]
[404468210,1770166239118,-500.0,0.00015999,2]
[404468211,1770166239127,-500.0,0.00015999,2]
[404468212,1770166239137,-558.31479011,0.00015999,2]
[404468213,1770166239146,-1852.42,0.00016114,2]
[404468214,1770166239155,-2080.87,0.00016116,2]
[404468215,1770166239165,-749.53,0.00016116,2]
[404468216,1770166239174,-150.99,0.00016116,2]
[404468217,1770166239184,-631.44,0.00016164,2]
[404468218,1770166239193,-1231.02,0.000162,2]
[404468219,1770166239202,-1798.15,0.0001637,2]
[404468220,1770166239212,-631.44,0.00016438,2]
[404468221,1770166239222,-227.27,0.00016438,2]
[404468222,1770166239236,-1813.44586048,0.00016461,2]
[404468223,1770166239245,-164.0,0.000165,2]
[404468224,1770166239254,-164.0,0.000165,3]
[404468225,1770166239263,-1000.0,0.00016515,2]
[404468226,1770166239273,-631.44,0.00016712,2]
[404468227,1770166239283,-839.0,0.0001672,2]
[404468228,1770166239292,-839.0,0.0001672,2]
[404468229,1770166239302,-503.60999982,0.0001673,2]
[404468230,1770166239311,-500.0,0.0001673,2]
[404468231,1770166239320,-500.0,0.0001673,2]
[404468232,1770166239329,-487.32196984,0.0001673,2]
[404468233,1770166239338,-500.87599875,0.0001673,2]
[404468234,1770166239347,-505.54148185,0.0001673,2]
[404468235,1770166239356,-500.0,0.0001673,2]
[404468236,1770166239365,-500.0,0.0001673,2]
[404468237,1770166239374,-500.0,0.0001673,2]
[404468238,1770166239384,-500.0,0.0001673,2]
[404468239,1770166239393,-500.0,0.0001673,2]
[404468240,1770166239402,-500.61825872,0.0001673,2]
[404468241,1770166239412,-335.67208162,0.0001673,2]
[404468242,1770166239421,-500.0,0.0001673,2]
[404468243,1770166239430,-500.0,0.0001673,2]
[404468244,1770166239440,-500.0,0.0001673,2]
[404468245,1770166239449,-500.0,0.0001673,2]
[404468246,1770166239459,-500.0,0.0001673,2]
[404468247,1770166239468,-500.0,0.0001673,2]
[404468248,1770166239477,-500.0,0.0001673,2]
[404468249,1770166239487,-23352.8035248,0.00016816,2]
[404468250,1770166239497,-488.0,0.00016822,2]
[404468251,1770166239505,-324.85,0.00016849,2]
[404468252,1770166239515,-500.0,0.0001694,2]
[404468253,1770166239524,-364.6547174,0.0001694,2]
[404468254,1770166239533,-1813.44586048,0.00016941,2]
[404468255,1770166239543,-631.44,0.00016986,2]
[404468256,1770166239552,-216.0,0.00016991,2]
[404468257,1770166239562,-1088.87,0.00016999,2]
[404468258,1770166239571,-500.0,0.00016999,2]
[404468259,1770166239581,-500.0,0.00016999,2]
[404468260,1770166239590,-508.48,0.00016999,2]
[404468261,1770166239599,-500.0,0.00016999,2]
[404468262,1770166239608,-500.0,0.00016999,2]
[404468263,1770166239618,-527.84,0.00016999,2]
[404468264,1770166239628,-500.0,0.00016999,2]
[404468265,1770166239638,-839.0,0.0001704,2]
[404468266,1770166239648,-837.0,0.0001704,2]
[404468267,1770166239658,-578.20924308,0.00017099,2]
[404468268,1770166239667,-277.35679052,0.00017099,2]
[404468269,1770166239676,-174.61919141,0.00017099,2]
[404468270,1770166239685,-209.40437684,0.00017099,2]
[404468271,1770166239695,-721.12765535,0.00017099,2]
[404468272,1770166239705,-209.40437684,0.00017099,2]
[404468273,1770166239714,-1428.38747117,0.00017099,2]
[404468274,1770166239723,-500.0,0.00017099,2]
[404468275,1770166239732,-500.0,0.00017099,2]
[404468276,1770166239742,-500.0,0.00017099,2]
[404468277,1770166239753,-500.0,0.00017099,2]
[404468278,1770166239763,-500.0,0.00017099,2]
[404468279,1770166239772,-500.0,0.00017099,2]
[404468280,1770166239782,-500.0,0.00017099,2]
[404468281,1770166239791,-500.0,0.00017099,2]
[404468282,1770166239801,-500.0,0.00017099,2]
[404468283,1770166239811,-500.0,0.00017099,2]
[404468284,1770166239830,-500.0,0.00017099,2]
[404468285,1770166239841,-322.6107,0.00017099,2]
[404468286,1770166239850,-116.94688921,0.00017099,2]
[404468287,1770166239867,-92.45748763,0.00017099,2]
[404468288,1770166239878,-200.0,0.00017099,2]
[404468289,1770166239889,-163.12428816,0.00017099,2]
[404468290,1770166239900,-84.35373423,0.00017112,2]
[404468291,1770166239914,-915.64626577,0.00017112,2]
[404468292,1770166239923,-68.55707156,0.00017119,2]
[404468304,1770166240784,-98.12292844,0.00017119,2]
[404468305,1770166240793,-188.00530076,0.0001715,2]
[404468306,1770166240867,-632.12874861,0.0001715,2]
[404468307,1770166240891,-910.21948755,0.0001715,2]
[404468308,1770166240903,-67.79646308,0.0001715,2]
[404468309,1770166240914,-217.15233878,0.00017154,2]
[404468310,1770166240923,-14.67546056,0.00017192,2]
[404468311,1770166240935,-244.32453944,0.00017192,2]
[404468312,1770166240944,-225.18697532,0.00017209,2]
[404468313,1770166240954,-971.1,0.00017246,2]
[404468314,1770166240964,-500.0,0.00017246,2]
[404468315,1770166240977,-592.50627165,0.00017246,2]
[404468316,1770166240986,-500.0,0.00017246,2]
[404468317,1770166240996,-631.44,0.0001726,2]
[404468318,1770166241006,-1000.0,0.0001726,2]
[404468319,1770166241017,-233.51889341,0.00017264,2]
[404468320,1770166241028,-495.9953446,0.00017278,2]
[404468321,1770166241038,-1000.0,0.00017278,2]
[404468322,1770166241049,-1000.0,0.00017278,2]
[404468323,1770166241059,-500.7588569,0.00017278,2]
[404468324,1770166241070,-996.09583646,0.00017278,2]
[404468325,1770166241081,-1000.0,0.00017278,2]
[404468326,1770166241091,-965.16495418,0.00017278,2]
[404468327,1770166241102,-638.52784923,0.00017278,2]
[404468328,1770166241111,-1000.0,0.00017278,2]
[404468329,1770166241122,-1000.0,0.00017278,2]
[404468330,1770166241133,-1000.0,0.00017278,2]
[404468331,1770166241142,-414.39055096,0.00017278,2]
[404468332,1770166241152,-1000.0,0.00017278,2]
[404468333,1770166241161,-1000.0,0.00017278,2]
[404468334,1770166241174,-164.0,0.000173,3]
[404468335,1770166241184,-164.0,0.000173,3]
[404468336,1770166241194,-242.15909246,0.00017319,2]
[404468337,1770166241204,-839.0,0.0001736,2]
[404468338,1770166241214,-839.0,0.0001736,2]
[404468339,1770166241225,-251.11897888,0.00017374,2]
[404468340,1770166241235,-5888.0,0.00017375,2]
[404468341,1770166241245,-316.0,0.00017376,2]
[404468342,1770166241255,-1813.44586048,0.0001742,2]
[404468343,1770166241264,-260.4103811,0.00017429,2]
[404468344,1770166241274,-200.0,0.00017462,2]
[404468345,1770166241284,-270.0455652,0.00017484,2]
[404468346,1770166241295,-164.0,0.000175,3]
[404468347,1770166241306,-164.0,0.000175,4]
[404468348,1770166241317,-631.44,0.00017534,2]
[404468349,1770166241327,-1000.0,0.00017534,2]
[404468350,1770166241336,-280.03725112,0.00017539,2]
[404468351,1770166241347,-7906.3196,0.0001758,2]
[404468352,1770166241358,-290.39862941,0.00017594,2]
[404468353,1770166241371,-293.93728109,0.0001764,2]
[404468354,1770166241382,-287.61899177,0.00017647,2]
[404468355,1770166241392,-181.08010149,0.00017647,2]
[404468356,1770166241403,-217.15233878,0.00017647,2]
[404468357,1770166241414,-1481.23780761,0.00017647,2]
[404468358,1770166241423,-217.15233878,0.00017647,2]
[404468359,1770166241433,-200.0,0.00017647,2]
[404468360,1770166241444,-1214.0,0.00017649,2]
[404468361,1770166241454,-301.1433787,0.00017649,2]
[404468362,1770166241463,-1214.0,0.00017655,2]
[404468363,1770166241472,-839.0,0.0001768,2]
[404468364,1770166241482,-839.0,0.0001768,2]
[404468365,1770166241492,-1000.0,0.00017709,2]
[404468366,1770166241502,-5888.0,0.00017729,2]
[404468367,1770166241512,-467.0,0.00017729,2]
[404468368,1770166241522,-162.706,0.00017746,2]
[404468369,1770166241532,-1015.742,0.00017746,2]
[404468370,1770166241542,-316.0,0.00017755,2]
[404468371,1770166241553,-200.0,0.00017783,2]
[404468372,1770166241564,-164.0,0.000178,4]
[404468373,1770166241574,-164.0,0.000178,4]
[404468374,1770166241584,-156.61,0.000178,4]
[404468375,1770166241593,-631.44,0.00017808,2]
[404468376,1770166241603,-1000.0,0.00017808,2]
[404468377,1770166241612,-5888.0,0.00017811,2]
[404468378,1770166241623,-1335.0,0.00017812,2]
[404468379,1770166241633,-162.292,0.00017812,2]
[404468380,1770166241642,-616.0,0.00017812,2]
[404468381,1770166241652,-3509.866,0.00017812,2]
[404468382,1770166241663,-1434.995,0.00017812,2]
[404468383,1770166241672,-150.0,0.00017812,2]
[404468384,1770166241682,-1271.0,0.00017812,2]
[404468385,1770166241691,-917.0,0.00017812,2]
[404468386,1770166241700,-1205.0,0.00017812,2]
[404468387,1770166241711,-568.0,0.00017812,2]
[404468388,1770166241720,-3253.0,0.00017812,2]
[404468389,1770166241730,-6580.0,0.00017812,2]
[404468390,1770166241739,-634.52409023,0.0001782,2]
[404468391,1770166241748,-1500.0,0.00017826,2]
[404468392,1770166241757,-1500.0,0.00017826,2]
[404468393,1770166241767,-1503.10964099,0.00017826,2]
[404468394,1770166241777,-1500.0,0.00017826,2]
[404468395,1770166241787,-1500.0,0.00017826,2]
[404468396,1770166241796,-1500.0,0.00017826,2]
[404468397,1770166241806,-504.38832369,0.00017826,2]
[404468398,1770166241815,-1500.0,0.00017826,2]
[404468399,1770166241825,-1088.87,0.00017855,2]
[404468400,1770166241835,-500.0,0.00017855,2]
[404468401,1770166241845,-500.0,0.00017855,2]
[404468402,1770166241855,-508.48,0.00017855,2]
[404468403,1770166241864,-505.36940951,0.00017855,2]
[404468404,1770166241874,-500.0,0.00017855,2]
[404468405,1770166241883,-200.0,0.00017855,2]
[404468406,1770166241892,-527.84,0.00017855,2]
[404468407,1770166241902,-500.0,0.00017855,2]
[404468408,1770166241912,-200.0,0.00017856,2]
[404468409,1770166241923,-200.0,0.00017856,2]
[404468410,1770166241932,-25000.0,0.00017856,3]
[404468411,1770166241942,-25000.0,0.00017865,3]
[404468412,1770166241952,-467.0,0.00017869,2]
[404468413,1770166241970,-25000.0,0.00017874,3]
[404468414,1770166241980,-2688.76715354,0.00017877,2]
[404468415,1770166241990,-7095.69905863,0.00017877,2]
[404468416,1770166241999,-12517.65421951,0.00017877,2]
[404468417,1770166242009,-18725.66208066,0.00017877,2]
[404468418,1770166242018,-25336.4859,0.00017877,2]
[404468419,1770166242029,-25000.0,0.00017882,3]
[404468420,1770166242039,-200.0,0.00017886,2]
[404468421,1770166242049,-25000.0,0.00017891,3]
[404468422,1770166242058,-160.0,0.00017891,3]
[404468423,1770166242067,-5888.0,0.00017892,2]
[404468424,1770166242077,-467.0,0.00017894,2]
[404468425,1770166242086,-1088.87,0.00017899,2]
[404468426,1770166242095,-500.0,0.00017899,2]
[404468427,1770166242104,-500.0,0.00017899,2]
[404468428,1770166242114,-508.48,0.00017899,2]
[404468429,1770166242124,-411.72693123,0.00017899,2]
[404468430,1770166242134,-527.84,0.00017899,2]
[404468431,1770166242143,-500.0,0.00017899,2]
[404468432,1770166242156,-151.31151821,0.00017899,2]
[404468433,1770166242167,-151.31151817,0.00017899,2]
[404468434,1770166242176,-151.31151817,0.00017899,2]
[404468435,1770166242186,-151.31151817,0.000179,2]
[404468436,1770166242195,-151.31151817,0.000179,2]
[404468437,1770166242204,-1000.0,0.000179,2]
[404468438,1770166242213,-500.0,0.000179,2]
[404468439,1770166242226,-10000.0,0.000179,2]
[404468440,1770166242236,-25000.0,0.000179,3]
[404468441,1770166242246,-160.0,0.000179,3]
[404468442,1770166242256,-160.0,0.000179,3]
[404468443,1770166242576,-390.88144552,0.000179,2]
[404468444,1770166242586,-1813.44586048,0.000179,2]
[404468445,1770166242597,-545.48124788,0.000179,2]
[404468446,1770166242607,-3445.06937652,0.000179,2]
[404468447,1770166242617,-151.31151817,0.000179,2]
[404468448,1770166242626,-6274.36211854,0.000179,2]
[404468450,1770166242635,-176.21939488,0.000179,2]
[404468452,1770166242648,-81524.81600407,0.000179,2]
[404468453,1770166242658,-3461.31809022,0.000179,2]
[404468454,1770166242668,-15669.0,0.000179,2]
[404468455,1770166242677,-1798.15,0.00017929,2]
[404468456,1770166242687,-200.0,0.0001793,2]
[404468457,1770166242696,-1214.0,0.00017953,2]
[404468458,1770166242706,-1214.0,0.00017954,2]
[404468459,1770166242716,-196.0,0.00017967,2]
[404468460,1770166242725,-5888.0,0.0001797,2]
[404468461,1770166242735,-8211.0,0.00017973,2]
[404468462,1770166242744,-150.0,0.00017973,2]
[404468463,1770166242753,-200.0,0.00017988,2]
[404468464,1770166242763,-180.12103973,0.0001799,2]
[404468465,1770166242774,-151.0,0.00017996,2]
[404468466,1770166242784,-151.0,0.00017997,2]
[404468467,1770166242793,-1088.87,0.00017998,2]
[404468468,1770166242803,-500.0,0.00017998,2]
[404468469,1770166242812,-500.0,0.00017998,2]
[404468470,1770166242822,-508.48,0.00017998,2]
[404468471,1770166242831,-527.84,0.00017998,2]
[404468472,1770166242844,-500.0,0.00017998,2]
[404468473,1770166242853,-300.0,0.00017999,2]
[404468474,1770166242863,-300.0,0.00017999,2]
[404468475,1770166242872,-675.22486702,0.00017999,2]
[404468476,1770166242882,-313.9472948,0.00017999,2]
[404468477,1770166242891,-300.0,0.00017999,2]
[404468478,1770166242901,-666.0,0.00017999,2]
[404468479,1770166242910,-1088.87,0.00017999,2]
[404468480,1770166242920,-1088.87,0.00017999,2]
[404468481,1770166242930,-1088.87,0.00017999,2]
[404468482,1770166242939,-1088.87,0.00017999,2]
[404468483,1770166242949,-1088.87,0.00017999,2]
[404468484,1770166242959,-1088.87,0.00017999,2]
[404468485,1770166242967,-1088.87,0.00017999,2]
[404468486,1770166242976,-1088.87,0.00017999,2]
[404468487,1770166242984,-1088.87,0.00017999,2]
[404468488,1770166242993,-1088.87,0.00017999,2]
[404468489,1770166243002,-1088.87,0.00017999,2]
[404468490,1770166243011,-1088.87,0.00017999,2]
[404468491,1770166243020,-1088.87,0.00017999,2]
[404468492,1770166243028,-1088.87,0.00017999,2]
[404468493,1770166243040,-1088.94366875,0.00017999,2]
[404468494,1770166243049,-500.0,0.00017999,2]
[404468495,1770166243058,-500.0,0.00017999,2]
[404468496,1770166243067,-500.0,0.00017999,2]
[404468497,1770166243076,-500.0,0.00017999,2]
[404468498,1770166243084,-500.0,0.00017999,2]
[404468499,1770166243092,-500.0,0.00017999,2]
[404468500,1770166243102,-373.00042525,0.00017999,2]
[404468501,1770166243110,-500.0,0.00017999,2]
[404468502,1770166243119,-500.0,0.00017999,2]
[404468503,1770166243127,-500.0,0.00017999,2]
[404468504,1770166243136,-500.0,0.00017999,2]
[404468505,1770166243145,-500.0,0.00017999,2]
[404468506,1770166243153,-500.0,0.00017999,2]
[404468507,1770166243162,-500.0,0.00017999,2]
[404468508,1770166243171,-500.0,0.00017999,2]
[404468509,1770166243180,-500.0,0.00017999,2]
[404468510,1770166243188,-500.0,0.00017999,2]
[404468511,1770166243197,-500.0,0.00017999,2]
[404468512,1770166243206,-500.0,0.00017999,2]
[404468514,1770166243214,-500.0,0.00017999,2]
[404468515,1770166243224,-285.69885577,0.00017999,2]